bitfinex/quotes_ETHUSD_20250508
["timestamp","ask_amount","ask_price","bid_price","bid_amount"]
[1746741588252,4.58620284,2180.5,2180.2,4.526]
[1746741588435,4.58652479,2180.3,2180.2,4.526]
[1746741589659,4.58636917,2180.4,2180.2,4.526]
[1746741589973,4.58644531,2180.4,2180.2,4.526]
[1746741590171,5.33598756,2180.8,2180.2,4.526]
[1746741590172,4.58589235,2180.7,2180.2,5.42834393]
[1746741590371,1.06344521,2181.1,2180.4,4.5862142]
[1746741590372,4.58484251,2181.1,2180.4,4.5862142]
[1746741590672,0.8168,2181.2,2180.7,4.58565906]
[1746741590673,4.58473934,2181.2,2180.7,4.58565906]
[1746741590856,4.58484958,2181.1,2180.8,4.525]
[1746741591288,4.58464694,2181.2,2180.8,5.51253472]
[1746741591443,0.8168,2181.5,2180.8,5.51253472]
[1746741591644,4.58518273,2181.0,2180.8,5.51253472]
[1746741591858,4.58494319,2181.1,2180.8,4.525]
[1746741592174,4.58507927,2181.0,2180.8,4.525]
[1746741592369,4.58492181,2181.1,2180.8,4.525]
[1746741592576,4.58594975,2180.6,2180.4,4.525]
[1746741592740,4.5861041,2180.5,2180.4,4.525]
[1746741594474,1.3668,2180.9,2180.4,4.525]
[1746741594673,4.5861041,2180.5,2180.4,4.525]
[1746741594879,4.58575834,2180.7,2180.4,4.9775]
[1746741595091,4.58538305,2180.9,2180.4,5.7491]
[1746741595293,4.58516567,2181.0,2180.5,0.04585626]
[1746741595493,4.58516567,2181.0,2180.5,4.63184773]
[1746741595684,4.58528088,2180.9,2180.5,4.63184773]
[1746741595886,4.58528088,2180.9,2180.6,1.49671464]
[1746741596086,4.58515659,2181.0,2180.6,1.49671464]
[1746741596253,4.58515659,2181.0,2180.4,10.33527588]
[1746741596461,4.58515659,2181.0,2180.5,4.58591677]
[1746741596993,4.58531757,2180.9,2180.5,4.58591677]
[1746741597494,4.58531757,2180.9,2180.4,10.3353013]
[1746741598094,4.58535242,2180.9,2180.4,10.3353013]
[1746741598300,4.58568996,2180.7,2180.5,2.17483748]
[1746741598687,4.58559657,2180.8,2180.5,2.17483748]
[1746741599007,4.58519831,2181.0,2180.5,6.76081275]
[1746741599201,4.5851873,2181.0,2180.5,6.76081275]
[1746741599364,4.58518264,2181.0,2180.5,6.76075091]
[1746741599564,4.58539325,2180.9,2180.6,1.70960398]
[1746741600201,4.58518011,2181.0,2180.6,1.70960398]
[1746741600498,0.7722,2181.5,2180.7,4.63150947]
[1746741600696,0.7958,2181.8,2181.0,0.813]
[1746741600898,0.7958,2181.8,2181.1,9.09752923]
[1746741601201,4.58388101,2181.6,2181.2,7.58462892]
[1746741601408,4.58331808,2181.9,2181.3,1.20974742]
[1746741601557,0.55,2181.8,2181.0,0.813]
[1746741601761,4.58526296,2180.9,2180.8,16.517]
[1746741602765,4.58568349,2180.7,2180.6,4.467]
[1746741603303,4.58558983,2180.8,2180.6,4.467]
[1746741603458,4.58500158,2181.1,2180.6,9.05288399]
[1746741603661,4.58457184,2181.3,2180.8,4.58535274]
[1746741603902,4.5839769,2181.6,2181.1,4.58477224]
[1746741604111,4.58394889,2181.6,2181.2,4.467]
[1746741604313,4.58442213,2181.3,2181.2,4.467]
[1746741604603,4.58316146,2181.9,2181.2,9.0515479]
[1746741604805,4.58295142,2182.0,2181.2,4.467]
[1746741605097,3.7679,2181.4,2180.7,4.467]
[1746741605301,4.58302717,2182.0,2180.8,4.58528216]
[1746741605503,4.58302717,2182.0,2180.7,4.51285337]
[1746741605504,4.58432696,2181.4,2180.9,0.0458448]
[1746741605799,4.58399119,2181.6,2181.1,4.58475726]
[1746741605994,4.58356721,2181.8,2181.3,4.58441971]
[1746741606186,4.58357111,2181.8,2181.4,4.51283661]
[1746741606365,5.34977701,2182.6,2181.4,4.51283661]
[1746741606567,4.5820795,2182.5,2181.4,4.467]
[1746741606802,4.58372689,2181.7,2181.4,4.467]
[1746741607000,4.58463231,2181.2,2181.1,16.517]
[1746741607211,0.55,2181.3,2180.5,0.33745784]
[1746741607364,4.58440309,2181.4,2180.4,5.2883]
[1746741607699,4.58579316,2180.7,2180.4,5.2883]
[1746741607906,9.03340309,2181.4,2180.5,3.0]
[1746741607907,4.449,2181.4,2180.5,3.0]
[1746741608102,4.58586829,2180.7,2180.4,5.62626739]
[1746741608303,4.5861041,2180.5,2180.4,5.2883]
[1746741608465,4.58558561,2180.8,2180.4,5.2883]
[1746741608664,4.58463231,2181.2,2180.5,0.04586036]
[1746741608960,4.58542915,2180.9,2180.5,3.0]
[1746741609166,4.58542915,2180.9,2180.6,0.82883]
[1746741609476,4.58513171,2181.0,2180.6,0.82883]
[1746741609800,4.448,2181.4,2180.7,0.04585446]
[1746741609801,4.58425063,2181.4,2180.7,0.04585446]
[1746741609964,4.58456531,2181.3,2180.8,7.58545891]
[1746741610164,4.58433173,2181.4,2181.0,0.7589]
[1746741610367,4.58376742,2181.7,2181.1,4.51184615]
[1746741610706,5.33506591,2182.0,2181.1,4.466]
[1746741610870,4.58443859,2181.3,2181.1,4.466]
[1746741611199,5.33508958,2182.0,2181.2,4.58452309]
[1746741611405,5.3351164,2182.0,2181.4,4.58418741]
[1746741611605,4.58255431,2182.2,2181.3,7.58428038]
[1746741611782,4.58373899,2181.7,2181.2,7.58461242]
[1746741612169,4.58373899,2181.7,2181.1,9.05072308]
[1746741612170,4.58433222,2181.4,2181.0,5.35643456]
[1746741612507,4.58433222,2181.4,2181.2,3.0]
[1746741612872,0.7954,2181.8,2181.2,3.0]
[1746741613273,4.58368199,2181.7,2181.2,7.58452659]
[1746741613474,4.5834004,2181.8,2181.5,3.0]
[1746741613811,4.5834004,2181.8,2181.4,3.0]
[1746741614112,4.58358199,2181.7,2181.4,3.0]
[1746741614405,4.58411837,2181.5,2181.2,3.0]
[1746741614605,5.37208217,2182.1,2181.2,3.0]
[1746741614792,4.58399025,2181.6,2181.2,3.0]
[1746741614995,4.584036,2181.5,2181.2,3.0]
[1746741615306,4.58399025,2181.6,2181.2,3.0]
[1746741615307,4.58391148,2181.6,2181.2,3.0]
[1746741615711,4.58340401,2181.8,2181.0,2.35643456]
[1746741615911,4.58484251,2181.1,2181.0,3.7589]
[1746741616083,4.58526296,2180.9,2180.8,4.466]
[1746741616888,4.58578171,2180.7,2180.4,1.1058909]
[1746741617210,4.58631443,2180.4,2180.3,4.466]
[1746741617385,4.58694555,2180.1,2180.0,16.513]
[1746741617584,4.58715596,2180.0,2179.9,3.88687819]
[1746741618716,8.88735596,2180.0,2179.9,3.88687819]
[1746741618916,5.33798731,2179.7,2179.6,2.29295958]
[1746741619116,20.1435372,2179.7,2179.6,2.29295958]
[1746741619481,10.31698731,2179.7,2179.6,2.29295958]
[1746741619714,10.31698731,2179.7,2179.0,3.99545505]
[1746741619715,4.58864409,2179.3,2179.0,3.99545505]
[1746741619980,0.55,2179.6,2179.0,3.99545505]
[1746741620213,4.58905052,2179.1,2179.0,3.99545505]
[1746741621791,5.91405052,2179.1,2179.0,3.99545505]
[1746741622690,8.91405052,2179.1,2179.0,3.99545505]
[1746741622919,0.55,2178.9,2178.3,4.467]
[1746741623122,6.7145453,2179.1,2178.3,4.467]
[1746741623282,4.59043606,2178.5,2178.3,4.467]
[1746741623623,0.775,2179.1,2178.3,4.467]
[1746741623624,4.58982014,2178.8,2178.3,4.467]
[1746741623917,4.58939274,2179.0,2178.5,4.59030952]
[1746741624079,4.58909253,2179.1,2178.6,3.0]
[1746741624278,0.7763,2179.5,2178.6,1.14049125]
[1746741624499,4.58936992,2179.0,2178.5,5.40500383]
[1746741625019,4.58841883,2179.4,2178.6,4.58993136]
[1746741625250,4.5885307,2179.4,2178.8,4.58947538]
[1746741625404,4.42,2179.7,2179.0,3.0]
[1746741625600,4.5879638,2179.7,2179.2,4.58875321]
[1746741625796,5.40277561,2180.2,2179.1,0.87468942]
[1746741625797,0.8159,2180.2,2179.1,0.8288]
[1746741626047,4.58832192,2179.5,2179.2,0.34743236]
[1746741626229,4.58845443,2179.4,2179.1,0.8288]
[1746741626407,4.58830277,2179.5,2179.1,3.8288]
[1746741626602,4.58810549,2179.6,2179.1,3.8288]
[1746741626821,4.58883994,2179.2,2179.1,3.8288]
[1746741627021,4.58883994,2179.2,2178.6,6.82654989]
[1746741627022,0.55,2179.5,2178.6,0.7586]
[1746741627345,4.59034994,2178.5,2178.3,0.7586]
[1746741627639,4.59042992,2178.5,2178.0,5.2746]
[1746741627841,4.59052834,2178.4,2178.0,5.2746]
[1746741628155,4.59095898,2178.2,2178.0,5.2746]
[1746741628446,4.59095898,2178.2,2177.7,5.39750301]
[1746741628626,4.59063526,2178.4,2177.9,4.59147549]
[1746741628843,4.59092671,2178.3,2177.8,4.5916744]
[1746741629003,4.59095783,2178.2,2177.8,3.0]
[1746741629416,4.59083902,2178.3,2177.8,4.59170065]
[1746741629841,4.59083902,2178.3,2177.9,3.0]
[1746741630005,4.59060736,2178.4,2177.9,7.59156261]
[1746741630344,4.59063696,2178.4,2177.9,3.0]
[1746741630707,4.59076188,2178.3,2177.9,3.0]
[1746741631105,0.7979,2179.1,2178.1,4.59106082]
[1746741631433,4.58980434,2178.8,2178.3,5.42163305]
[1746741631744,4.58911127,2179.1,2178.6,4.59000827]
[1746741631943,4.5886392,2179.3,2178.8,4.58956767]
[1746741632103,4.58828952,2179.5,2178.9,9.88225225]
[1746741632309,4.58799779,2179.6,2179.0,7.58913393]
[1746741632501,4.58812445,2179.6,2179.1,4.63492968]
[1746741632735,4.58812445,2179.6,2179.2,3.0]
[1746741633246,0.7718,2180.0,2179.3,4.63438517]
[1746741633430,4.408,2180.2,2179.3,4.3221858]
[1746741633642,4.5873169,2180.0,2179.6,0.7995]
[1746741633846,4.58745503,2179.9,2179.6,3.7995]
[1746741634018,4.63286391,2180.1,2179.6,3.7995]
[1746741634019,4.58725676,2180.0,2179.6,3.7995]
[1746741634414,4.58663105,2180.3,2179.8,4.58753134]
[1746741634647,4.58682886,2180.2,2179.8,3.0]
[1746741634822,4.58667755,2180.3,2179.8,7.63342916]
[1746741635022,4.58676687,2180.2,2179.8,3.04586938]
[1746741635255,4.58695701,2180.1,2179.8,3.0]
[1746741635457,0.04588458,2180.0,2179.2,0.7873]
[1746741635769,4.58862937,2179.3,2179.2,4.416]
[1746741636082,4.58926112,2179.0,2178.9,0.7873]
[1746741636245,4.58950549,2178.9,2178.7,4.416]
[1746741636445,4.58950549,2178.9,2178.8,3.0]
[1746741636775,4.58950549,2178.9,2178.6,4.416]
[1746741636776,4.58987466,2178.8,2178.6,4.416]
[1746741637082,4.58989305,2178.7,2178.6,4.416]
[1746741637650,4.58989305,2178.7,2178.2,25.5208669]
[1746741637651,4.59040863,2178.5,2178.2,16.528]
[1746741637845,4.59073589,2178.3,2178.2,16.528]
[1746741638464,4.59094665,2178.2,2178.1,4.416]
[1746741639287,0.04588458,2178.4,2178.1,4.416]
[1746741639475,4.6361243,2178.6,2178.1,9.00714356]
[1746741639676,5.7413,2179.1,2178.0,7.416]
[1746741639677,4.590636,2178.4,2178.0,7.416]
[1746741640006,4.59049136,2178.5,2178.0,12.00725836]
[1746741640200,4.59037409,2178.5,2178.0,7.416]
[1746741640408,4.59037409,2178.5,2178.0,12.00726263]
[1746741640565,4.59037409,2178.5,2178.0,13.29276964]
[1746741640768,4.59037409,2178.5,2178.1,0.04590744]
[1746741641084,5.1913,2179.1,2178.1,0.04590744]
[1746741641085,4.93821836,2179.6,2178.4,0.7709]
[1746741641398,4.58961962,2178.9,2178.5,3.04589662]
[1746741641581,4.58856522,2179.4,2179.0,3.0]
[1746741641785,4.58873976,2179.3,2179.0,3.0]
[1746741642089,4.58844553,2179.4,2178.9,0.0458877]
[1746741642265,4.58824931,2179.5,2179.0,5.38605715]
[1746741642469,4.58838524,2179.5,2179.1,0.0458845]
[1746741642691,4.58847945,2179.4,2179.2,4.416]
[1746741643008,0.04588458,2179.7,2179.4,4.58838773]
[1746741643209,4.58589379,2180.6,2179.5,4.63402255]
[1746741643507,4.58658167,2180.3,2179.8,4.58739892]
[1746741643678,4.58658167,2180.3,2179.9,4.416]
[1746741643869,0.04588458,2180.3,2179.9,9.00332603]
[1746741644070,0.04588458,2180.3,2180.0,4.58701835]
[1746741644300,4.58642316,2180.4,2180.1,3.0]
[1746741644980,4.58619891,2180.5,2180.1,3.34647337]
[1746741645798,0.04588458,2180.6,2180.1,3.0]
[1746741645799,4.58673516,2180.2,2180.1,3.0]
[1746741645973,4.58594576,2180.6,2180.1,3.0]
[1746741646174,0.04588458,2180.5,2180.1,3.0]
[1746741646386,4.58641169,2180.4,2180.1,3.0]
[1746741646585,0.04588458,2180.5,2180.1,7.58687806]
[1746741646797,4.58607085,2180.6,2180.1,3.0]
[1746741647107,4.58610596,2180.5,2180.1,3.0]
[1746741647276,4.58598924,2180.6,2180.1,7.58693167]
[1746741647480,4.58638323,2180.4,2180.1,3.0]
[1746741647686,4.58663548,2180.3,2180.0,0.34740336]
[1746741647880,0.04588458,2180.3,2180.0,3.0]
[1746741648075,5.40226879,2181.1,2180.0,3.0]
[1746741648076,4.63156276,2180.8,2180.0,3.04586818]
[1746741648320,4.58694555,2180.1,2180.0,3.0]
[1746741648875,4.58694555,2180.1,2179.9,5.2487]
[1746741648876,4.58694555,2180.1,2179.6,17.292]
[1746741649198,4.63314177,2180.0,2179.2,0.762]
[1746741649397,4.58862937,2179.3,2179.1,4.415]
[1746741649616,4.58845966,2179.4,2179.2,3.0]
[1746741649617,4.58855035,2179.4,2179.2,3.0]
[1746741649922,4.58862937,2179.3,2179.2,3.0]
[1746741650734,4.58790992,2179.7,2179.2,8.37612133]
[1746741651030,0.04588458,2180.0,2179.3,0.7916]
[1746741651197,4.58745511,2179.9,2179.4,7.63421277]
[1746741651599,4.58745471,2179.9,2179.4,7.63421277]
[1746741651800,4.58760386,2179.8,2179.4,3.0]
[1746741651995,4.58745727,2179.9,2179.4,7.58840908]
[1746741652224,4.58766799,2179.8,2179.4,3.0]
[1746741652404,4.58766799,2179.8,2179.3,9.75712875]
[1746741652405,4.58790642,2179.7,2179.3,5.1686]
[1746741652800,4.58790642,2179.7,2179.4,3.0]
[1746741653001,4.58790642,2179.7,2179.3,5.1686]
[1746741653731,4.58790642,2179.7,2179.4,3.0]
[1746741654230,4.58766799,2179.8,2179.4,3.0]
[1746741654441,0.04588458,2180.0,2179.4,3.0]
[1746741654730,0.04588458,2180.3,2179.5,0.04587774]
[1746741655029,4.58697963,2180.1,2179.6,7.58783158]
[1746741655199,4.58720108,2180.0,2179.8,3.0]
[1746741656197,4.58736639,2179.9,2179.8,3.0]
[1746741656413,4.58748517,2179.9,2179.7,4.415]
[1746741657233,4.58757684,2179.8,2179.7,4.415]
[1746741657435,4.58841883,2179.4,2179.3,3.7916]
[1746741657939,4.58862937,2179.3,2179.2,4.415]
[1746741658119,0.92229328,2179.3,2178.7,16.527]
[1746741658327,4.58968239,2178.8,2178.7,16.527]
[1746741658497,4.59010373,2178.6,2178.5,7.46889183]
[1746741659932,4.59010373,2178.6,2178.5,3.05389183]
[1746741660139,5.55858218,2178.6,2178.5,3.05389183]
[1746741660440,5.55858218,2178.6,2177.5,4.59229247]
[1746741660441,4.59200073,2177.7,2177.6,4.364]
[1746741660797,4.63788531,2177.7,2177.6,4.364]
[1746741661797,4.59208685,2177.7,2177.4,0.04592286]
[1746741661999,4.59208685,2177.7,2177.3,3.06007565]
[1746741662299,4.59169834,2177.9,2177.4,4.59261661]
[1746741662499,4.59169834,2177.9,2177.4,3.04592056]
[1746741662835,4.59183303,2177.8,2177.4,3.04592056]
[1746741663203,4.59222226,2177.6,2177.3,7.42407565]
[1746741663399,3.04588458,2178.1,2177.3,7.42407565]
[1746741663637,4.59241534,2177.6,2177.3,3.06007565]
[1746741663935,4.59188836,2177.8,2177.3,7.69880665]
[1746741664346,0.04588458,2177.7,2177.3,3.06007565]
[1746741664501,4.59239363,2177.6,2177.3,3.06007565]
[1746741664827,4.59231348,2177.6,2177.3,3.06007565]
[1746741665213,4.63797752,2177.7,2177.3,3.06007565]
[1746741665647,4.63797752,2177.7,2177.3,7.42507565]
[1746741665963,1.68569387,2178.6,2177.8,3.0]
[1746741666254,1.68569387,2178.6,2177.5,1.3071]
[1746741666255,4.63547268,2178.9,2178.4,4.59051929]
[1746741666457,4.58937153,2179.0,2178.5,0.04589879]
[1746741666644,0.04588458,2178.9,2178.1,0.7571]
[1746741666842,4.59187871,2177.8,2177.6,0.7571]
[1746741667154,4.59252896,2177.5,2177.3,4.70118444]
[1746741667761,4.59263341,2177.4,2177.3,4.365]
[1746741668065,4.63792557,2177.7,2176.9,16.524]
[1746741668270,4.59306083,2177.2,2177.0,4.366]
[1746741668554,5.05605975,2177.6,2177.0,0.30215178]
[1746741668761,0.04588458,2177.5,2177.0,4.366]
[1746741668924,4.5930553,2177.2,2177.0,4.366]
[1746741669123,4.5930553,2177.2,2176.9,16.86642028]
[1746741669319,4.5930553,2177.2,2176.9,20.89]
[1746741669320,4.59347726,2177.0,2176.9,20.89]
[1746741670130,4.63936184,2177.0,2176.9,20.89]
[1746741670545,4.63936184,2177.0,2176.4,0.8247]
[1746741670750,0.92326865,2176.9,2176.0,0.75]
[1746741670968,4.59463408,2176.5,2176.1,10.04682197]
[1746741671172,4.59413478,2176.7,2176.2,4.59505101]
[1746741671356,0.04588458,2176.9,2176.2,4.59508239]
[1746741671670,4.5942057,2176.7,2176.2,4.59509913]
[1746741672065,4.59399083,2176.8,2176.2,3.34666602]
[1746741672272,4.64010193,2176.7,2176.2,3.0]
[1746741672568,4.64008648,2176.7,2176.2,3.0]
[1746741672729,4.64008648,2176.7,2176.2,7.59498778]
[1746741672931,4.59443495,2176.6,2176.2,4.41294402]
[1746741673130,4.59434082,2176.6,2176.2,4.41294402]
[1746741673670,4.59413025,2176.7,2176.2,9.00809982]
[1746741673671,4.59421155,2176.7,2176.2,9.00809982]
[1746741673989,4.59433884,2176.6,2176.2,9.00806762]
[1746741674177,0.04588458,2176.9,2176.3,7.59485139]
[1746741674384,4.59348362,2177.0,2176.3,3.0]
[1746741674540,4.63964695,2176.9,2176.2,4.367]
[1746741674748,4.59471365,2176.5,2176.2,4.367]
[1746741674971,4.59475242,2176.4,2176.2,4.367]
[1746741675158,4.59483426,2176.4,2176.2,4.367]
[1746741675376,4.59464094,2176.5,2176.2,4.367]
[1746741675967,4.59441043,2176.6,2176.2,9.00808814]
[1746741676379,0.04588458,2176.7,2176.2,8.96206665]
[1746741676577,4.64009747,2176.7,2176.2,8.96206665]
[1746741676894,4.59441564,2176.6,2176.2,4.367]
[1746741677579,4.64012516,2176.7,2176.2,9.30223144]
[1746741677756,4.64012516,2176.7,2176.2,9.34817643]
[1746741677956,4.59432641,2176.6,2176.3,4.368]
[1746741678157,0.04588458,2176.7,2176.3,4.368]
[1746741678365,0.04588458,2177.3,2176.6,0.7845]
[1746741678592,0.04588458,2177.3,2176.8,4.59384327]
[1746741678792,0.7629,2177.7,2176.8,4.59384327]
[1746741678793,0.04588458,2177.5,2176.9,0.04593097]
[1746741678971,0.04588458,2177.5,2176.9,7.98089832]
[1746741679298,0.04588458,2177.6,2177.1,4.59323906]
[1746741679467,0.04588458,2177.6,2177.0,4.63939159]
[1746741679671,0.7629,2178.0,2177.2,0.8312]
[1746741679883,4.59243056,2177.5,2177.2,0.8312]
[1746741680086,0.04588458,2177.4,2176.9,7.93482861]
[1746741680280,5.35432058,2178.0,2176.9,7.93482861]
[1746741680281,0.7629,2178.0,2176.9,3.34128975]
[1746741680485,4.59233272,2177.6,2176.9,3.34128975]
[1746741680670,4.59326014,2177.2,2176.6,7.59420201]
[1746741680858,4.5935973,2177.0,2176.5,3.8229]
[1746741681060,4.63964608,2176.9,2176.2,7.65826725]
[1746741681260,4.63963051,2176.9,2176.2,0.8229]
[1746741681521,5.37661579,2176.9,2176.2,3.86884401]
[1746741681692,4.59327661,2177.1,2176.2,9.81772279]
[1746741681991,4.63953102,2177.0,2176.4,4.5947236]
[1746741682498,4.59390988,2176.8,2176.2,9.77176452]
[1746741682695,0.04588458,2176.8,2176.3,4.59494735]
[1746741682904,0.7829,2177.2,2176.4,0.04594546]
[1746741683067,4.59263341,2177.4,2176.8,4.59372432]
[1746741683269,5.34976869,2177.5,2176.9,4.59365094]
[1746741683467,0.7572,2177.8,2177.0,0.04593386]
[1746741683670,4.59223968,2177.6,2177.0,4.63933602]
[1746741683873,0.04588458,2177.5,2177.0,4.63936767]
[1746741684194,4.59223968,2177.6,2177.0,5.94348376]
[1746741684491,0.04588458,2177.7,2177.0,1.35004995]
[1746741684880,5.34908599,2177.8,2177.2,4.59291218]
[1746741685084,4.58977965,2178.8,2177.2,3.04592876]
[1746741685319,0.8231,2178.7,2177.5,3.0]
[1746741685488,0.86898458,2178.7,2177.6,0.04591424]
[1746741685692,4.59123324,2178.1,2177.5,7.59225705]
[1746741685907,0.04588458,2178.0,2177.5,7.59225705]
[1746741686078,4.63727734,2178.0,2177.5,7.59225705]
[1746741686518,4.59197223,2177.8,2177.4,3.0]
[1746741686823,4.59197223,2177.8,2177.3,5.0961]
[1746741686824,4.59337279,2177.1,2176.6,11.42953521]
[1746741687120,4.59263341,2177.4,2176.6,7.64676725]
[1746741687323,0.04588458,2177.3,2176.6,4.369]
[1746741687504,4.59409866,2176.8,2176.6,4.369]
[1746741687679,4.63999493,2176.7,2176.6,4.369]
[1746741688104,0.7613,2177.4,2176.6,4.8059]
[1746741688317,4.6388344,2177.3,2176.8,5.40520141]
[1746741688521,0.04588458,2177.3,2176.8,0.8114]
[1746741688806,4.59306443,2177.2,2176.8,0.8114]
[1746741688998,4.59306443,2177.2,2176.6,9.40013945]
[1746741688999,4.5938993,2176.8,2176.6,4.369]
[1746741689204,4.64006414,2176.7,2176.2,1.16028689]
[1746741689439,4.59475405,2176.4,2176.2,0.8114]
[1746741689644,4.64053035,2176.5,2176.1,23.37836725]
[1746741689817,4.64053035,2176.5,2176.1,16.543]
[1746741690146,4.59422759,2176.7,2176.2,7.59516238]
[1746741690306,0.7613,2177.0,2176.2,13.10421592]
[1746741690510,0.80718458,2177.3,2176.5,4.59440684]
[1746741690706,0.80718458,2177.3,2176.4,4.5946613]
[1746741690707,4.59368936,2176.9,2176.4,4.5946613]
[1746741690911,4.59418935,2176.7,2176.4,3.0]
[1746741691252,0.04588458,2176.6,2176.2,6.83536725]
[1746741691445,4.59455669,2176.5,2176.2,6.83536725]
[1746741691654,0.04588458,2176.6,2176.2,10.3978782]
[1746741691950,0.04588458,2177.2,2176.3,4.319]
[1746741692122,4.59455046,2176.5,2176.3,4.319]
[1746741692444,4.59421136,2176.7,2176.3,4.319]
[1746741692612,4.59432465,2176.6,2176.3,4.319]
[1746741692945,4.59463848,2176.5,2176.3,4.319]
[1746741693152,0.04588458,2176.5,2176.3,4.319]
[1746741693306,4.64051476,2176.5,2176.1,16.543]
[1746741693509,0.04588458,2176.5,2176.1,16.543]
[1746741693711,4.5946441,2176.5,2176.1,16.543]
[1746741693950,0.04588458,2176.6,2176.2,3.0]
[1746741694120,4.59413893,2176.7,2176.2,7.59505658]
[1746741694947,4.59433037,2176.6,2176.2,3.0]
[1746741695253,4.5949815,2176.3,2176.0,3.33629907]
[1746741695552,4.5945325,2176.5,2175.9,5.1304]
[1746741695720,4.59526745,2176.2,2175.9,5.1304]
[1746741695922,4.59541905,2176.1,2175.9,5.1304]
[1746741696239,4.59558823,2176.0,2175.9,4.319]
[1746741696613,4.59579943,2175.9,2175.8,0.25415427]
[1746741696817,4.59579943,2175.9,2175.2,16.546]
[1746741696818,4.59706707,2175.3,2175.2,16.546]
[1746741697035,4.59744564,2175.2,2175.0,7.60596725]
[1746741697348,4.59716588,2175.3,2175.0,7.60596725]
[1746741697554,4.59697476,2175.4,2175.0,7.60596725]
[1746741697765,4.64285934,2175.4,2175.0,0.7706]
[1746741698052,4.59686335,2175.4,2175.0,0.7706]
[1746741698258,0.777,2176.2,2175.2,3.0]
[1746741698549,0.82288458,2176.5,2175.8,7.59588904]
[1746741698745,4.59476659,2176.4,2175.9,8.96059337]
[1746741699048,4.59495882,2176.3,2175.9,4.3649519]
[1746741699214,4.59495882,2176.3,2175.6,0.7706]
[1746741699215,4.59558823,2176.0,2175.6,0.7706]
[1746741699410,4.5963965,2175.7,2175.3,5.0896]
[1746741699649,0.46414728,2176.0,2175.5,4.59663241]
[1746741699852,0.04588458,2176.0,2175.5,0.04596453]
[1746741700014,0.04588458,2176.0,2175.4,3.0]
[1746741700015,4.59642469,2175.7,2175.4,3.0]
[1746741700216,4.64249699,2175.6,2175.3,4.319]
[1746741700450,4.5963407,2175.7,2175.3,8.91597311]
[1746741700774,4.5963407,2175.7,2175.3,4.319]
[1746741701594,4.64197406,2175.8,2175.3,4.319]
[1746741701895,3.0,2176.3,2175.3,4.319]
[1746741701896,0.8049,2176.5,2175.7,6.83536725]
[1746741702062,0.8049,2176.5,2176.0,11.43080309]
[1746741702063,0.04588458,2176.4,2176.0,11.43080309]
[1746741702386,4.59365848,2177.0,2176.4,4.59454431]
[1746741702592,0.8049,2177.4,2176.6,6.83536725]
[1746741702791,0.04588458,2177.5,2176.9,6.83536725]
[1746741702995,0.8049,2177.7,2177.0,0.04593329]
[1746741703158,4.5924225,2177.5,2176.7,7.62136725]
[1746741703358,4.59371877,2176.9,2176.8,3.0]
[1746741703562,4.59371877,2176.9,2176.4,4.59463724]
[1746741703563,4.59443802,2176.6,2176.4,0.786]
[1746741703872,4.5945325,2176.5,2176.3,4.32]
[1746741704064,4.59424061,2176.7,2176.3,4.32]
[1746741704065,0.04588458,2176.7,2176.3,4.32]
[1746741704260,4.59358124,2177.0,2176.5,4.59435926]
[1746741704460,4.59329744,2177.1,2176.6,4.59418816]
[1746741704692,4.6390602,2177.2,2176.7,4.6399209]
[1746741704862,4.59317562,2177.2,2176.8,0.7703]
[1746741705289,4.5933649,2177.1,2176.8,0.7703]
[1746741705489,0.04588458,2177.0,2176.5,0.7703]
[1746741705806,4.59349711,2177.0,2176.6,4.64025075]
[1746741705981,0.04588458,2177.0,2176.5,0.7703]
[1746741706187,4.59421572,2176.7,2176.5,0.7703]
[1746741706382,4.59421572,2176.7,2176.4,3.0]
[1746741706561,4.59474361,2176.4,2176.3,4.32]
[1746741706762,4.64029893,2176.6,2176.3,4.32]
[1746741707100,4.59474361,2176.4,2176.3,4.32]
[1746741707275,4.64062819,2176.4,2176.3,4.32]
[1746741707675,4.64062819,2176.4,2175.9,4.59575148]
[1746741707873,4.64062819,2176.4,2175.9,8.91475148]
[1746741708405,4.59532712,2176.2,2175.9,4.319]
[1746741708558,4.6412117,2176.2,2175.9,4.319]
[1746741709368,4.64095304,2176.3,2175.9,4.319]
[1746741709570,4.59506846,2176.3,2175.9,8.91478925]
[1746741709927,0.04588458,2176.4,2175.9,4.319]
[1746741710195,4.59538184,2176.1,2175.9,4.319]
[1746741710430,4.64147281,2176.0,2175.9,4.319]
[1746741710710,4.6411593,2176.2,2175.9,4.319]
[1746741711014,4.59539156,2176.1,2175.9,4.319]
[1746741711378,4.59539156,2176.1,2175.7,21.14517755]
[1746741711577,4.59539156,2176.1,2175.7,16.549]
[1746741711779,4.64113837,2176.2,2175.7,21.14519589]
[1746741712082,4.59452066,2176.6,2176.1,4.59524626]
[1746741712279,4.59535669,2176.2,2176.0,0.7827]
[1746741712480,4.64124127,2176.2,2175.8,7.59599715]
[1746741712810,4.59540995,2176.1,2175.7,17.3317]
[1746741713119,4.64129453,2176.1,2175.7,17.3317]
[1746741713723,4.59526646,2176.2,2175.8,4.59593949]
[1746741713919,0.04588458,2176.4,2176.0,4.59547228]
[1746741714210,4.59477267,2176.4,2175.9,4.59568312]
[1746741714576,4.64074002,2176.4,2175.9,4.59578045]
[1746741714778,9.23568575,2176.4,2175.9,4.59578944]
[1746741714973,4.59496556,2176.3,2175.8,11.81651081]
[1746741715180,4.59496556,2176.3,2175.8,7.22061556]
[1746741715412,5.34594978,2176.3,2175.8,4.59587904]
[1746741715610,4.64105867,2176.2,2175.8,4.59587904]
[1746741715810,4.6409479,2176.3,2175.7,16.549]
[1746741715975,4.59483377,2176.4,2175.9,4.59570721]
[1746741716181,4.59507297,2176.3,2175.9,0.7827]
[1746741716406,4.59517291,2176.2,2175.9,0.7827]
[1746741716786,0.04588458,2176.3,2175.9,0.7827]
[1746741716994,4.59516588,2176.2,2175.9,0.7827]
[1746741717218,4.59546386,2176.1,2175.9,0.7827]
[1746741717621,4.59546386,2176.1,2175.7,21.14513757]
[1746741717792,4.5962219,2175.7,2175.6,4.32]
[1746741719020,0.7509,2176.0,2175.4,4.59671366]
[1746741719180,4.5954017,2176.1,2175.6,4.59643316]
[1746741719386,4.59619224,2175.8,2175.4,0.04595847]
[1746741719588,4.59622952,2175.7,2175.3,11.87000436]
[1746741720015,0.04588458,2175.8,2175.3,10.35132126]